{"text_format":"1","workbook":"xlsx","n_sheets":5,"sheets":["0. Introducción","1. General","2. Archivo Facturas","3. Nueva factura","4. Control"],"not_rendered":{"charts":0,"images":2,"macros":1,"external_links":0,"defined_names":12,"comments":0,"pivot_tables":4},"unopened":[],"bounds":{"document_bytes":16777216,"sheet_cells":100000,"rows_first":2000,"rows_last":500,"rows_between":2000,"halvings":0,"cell_chars":16384,"cell_head_chars":4096},"cells_cut":0,"cells_raw":0,"read":"whole","date_system":"1900"}

{"sheet":"0. Introducción","index":0,"n_rows":9,"n_cols":14,"rows_kept":9,"cut":false,"hidden":false,"merged":[[6,1,6,14],[8,1,8,14]]}
[null,"Introducción",null,null,null,null,null,null,null,null,null,null,null,"www.excelyvba.com"]
[]
[]
[]
[]
[]
[null,"Cómo usar este libro\nEste libro está pensado para aquellas personas o empresas pequeñas que quieran llevar una pequeña contabilidad de sus facturas. Para ello hemos simplifcado al máximo las opciones, pero si quieres, coméntanos cómo podemos ayudarte en www.excelyvba.com y estaremos encantados de mejorar este libro."]
[]
[null,"Por dónde empezar\nPara usar este libro lo primero que tienes que hacer es ir a la pestaña 1. General. Una vez ahí debes rellenar tanto tus datos como los de tus clientes. Son los datos mínimos que necesitas para hacer una factura así que los tienes que tener. Si sólo tienes un cliente mejor para ti, menos datos que tienes que insertar. :)\nEn la pestaña 3. Nueva factura puedes crear nuevas facturas para tus clientes. Los datos de estas facturas se copiarán automáticamente en la pestaña 2. Archivo facturas.\nPara controlar tú facturación podrás utilizar la pestaña 2. Archivo facturas y la pestaña 3. Control para ver un resumen de los principales valores de tus facturas pagadas y no pagadas."]

{"sheet":"1. General","index":1,"n_rows":18,"n_cols":14,"rows_kept":18,"cut":false,"hidden":false,"merged":[[4,2,4,14],[13,2,13,14],[6,3,6,5],[8,3,8,5],[8,8,8,10],[6,8,6,10]]}
[null,"General",null,null,null,null,null,null,null,null,null,null,null,"www.excelyvba.com"]
[]
[null,"Información personal"]
[]
[null,null,"Por favor, ingresa los valores de tú empresa o tus datos personales si eres Autónomo. Estos datos se utilizarán para hacer las facturas."]
[]
[null,null,"Nombre y apellidos:","Pepito Pérez",null,null,null,"NIF:","503512240P"]
[]
[null,null,"Dirección:","C/ Costa Brava, 190 5ºb",null,null,null,"Ciudad:","Madrid",null,null,null,"Código postal:",28034]
[]
[]
[null,"Clientes"]
[]
[null,null,"Por favor, ingresa los valores de tus clientes. Esta tabla te mostrará los datos de manera automática en las facturas y en el cuadro de control.\nIngresa el tipo impositivo (IVA) normal que utilices y el valor de IRPF que apliques:"]
[]
[null,null,"Nombre","Dirección","Provincia","Ciudad","Cod. Postal","NIF",null,"Tipo de IVA:",0.18]
[null,null,"Bar Paco","C/ Pez ,3","Madrid","Madrid",28034,"823819283f"]
[null,null,null,null,null,null,null,null,null,"IRPF",0.15]

{"sheet":"2. Archivo Facturas","index":2,"n_rows":17,"n_cols":14,"rows_kept":17,"cut":false,"hidden":false,"merged":[]}
[null,"Archivo de facturas",null,null,null,null,null,null,null,null,null,null,null,"www.excelyvba.com"]
[]
[]
[]
[null,null,null,"Estado","Factura","Fecha","Cliente","Importe Neto","IVA","Importe Bruto","IVA Pagado","Mes","Año"]
[null,null,null,"Enviada",1,"2015-09-02","Bar Paco",1000,180,1180,"Si",{"$f":"+MONTH(TB_Facturas[[#This Row],[Fecha]])","v":9},{"$f":"+YEAR(TB_Facturas[[#This Row],[Fecha]])","v":2015}]
[null,null,null,"Pagada",2,"2015-11-02","Bar Paco",1000,180,1180,"Si",{"$f":"+MONTH(TB_Facturas[[#This Row],[Fecha]])","v":11},{"$f":"+YEAR(TB_Facturas[[#This Row],[Fecha]])","v":2015}]
[null,null,null,"Pendiente",3,"2015-10-02","Bar Paco",1000,180,1180,"No",{"$f":"+MONTH(TB_Facturas[[#This Row],[Fecha]])","v":10},{"$f":"+YEAR(TB_Facturas[[#This Row],[Fecha]])","v":2015}]
[null,null,null,"Enviada",4,"2015-11-02","Bar Paco",1000,180,1180,"No",{"$f":"+MONTH(TB_Facturas[[#This Row],[Fecha]])","v":11},{"$f":"+YEAR(TB_Facturas[[#This Row],[Fecha]])","v":2015}]
[null,null,null,"Enviada",5,"2015-11-04","Bar Paco",1000,180,1180,"No",{"$f":"+MONTH(TB_Facturas[[#This Row],[Fecha]])","v":11},{"$f":"+YEAR(TB_Facturas[[#This Row],[Fecha]])","v":2015}]
[null,null,null,"Enviada",6,"2015-11-05","Bar Paco",1000,180,1180,"No",{"$f":"+MONTH(TB_Facturas[[#This Row],[Fecha]])","v":11},{"$f":"+YEAR(TB_Facturas[[#This Row],[Fecha]])","v":2015}]
[null,null,null,"Enviada",7,"2015-11-08","Bar Paco",2300,414,2369,"No",{"$f":"+MONTH(TB_Facturas[[#This Row],[Fecha]])","v":11},{"$f":"+YEAR(TB_Facturas[[#This Row],[Fecha]])","v":2015}]
[null,null,null,"Enviada",8,"2015-11-08","Bar Paco",2300,414,2369,"No",{"$f":"+MONTH(TB_Facturas[[#This Row],[Fecha]])","v":11},{"$f":"+YEAR(TB_Facturas[[#This Row],[Fecha]])","v":2015}]
[null,null,null,"Enviada",9,"2015-11-08","Bar Paco",2300,414,2369,"No",{"$f":"+MONTH(TB_Facturas[[#This Row],[Fecha]])","v":11},{"$f":"+YEAR(TB_Facturas[[#This Row],[Fecha]])","v":2015}]
[null,null,null,"Enviada",10,"2015-11-10","Bar Paco",2300,414,2369,"No",{"$f":"+MONTH(TB_Facturas[[#This Row],[Fecha]])","v":11},{"$f":"+YEAR(TB_Facturas[[#This Row],[Fecha]])","v":2015}]
[null,null,null,"Enviada",11,"2015-11-10","Bar Paco",2300,414,2369,"No",{"$f":"+MONTH(TB_Facturas[[#This Row],[Fecha]])","v":11},{"$f":"+YEAR(TB_Facturas[[#This Row],[Fecha]])","v":2015}]
[null,null,null,"Enviada",12,"2015-11-18","Bar Paco",2300,414,2369,"No",{"$f":"+MONTH(TB_Facturas[[#This Row],[Fecha]])","v":11},{"$f":"+YEAR(TB_Facturas[[#This Row],[Fecha]])","v":2015}]

{"sheet":"3. Nueva factura","index":3,"n_rows":53,"n_cols":18,"rows_kept":53,"cut":false,"hidden":false,"merged":[[3,2,6,4],[52,2,52,8],[16,2,32,8],[41,2,48,7]]}
[null,"Factura",null,null,null,null,null,null,null,null,null,null,null,null,null,null,null,"www.excelyvba.com"]
[]
[]
[null,null,"Insertar logo aquí",null,null,null,{"$f":"INFO_NOMBRE","v":"Pepito Pérez"}]
[null,null,null,null,null,null,{"$f":"\"NIF: \" &INFO_NIF","v":"NIF: 503512240P"},null,null,null,null,null,"Número de factura incicial"]
[null,null,null,null,null,null,{"$f":"INFO_DIREC","v":"C/ Costa Brava, 190 5ºb"},null,null,null,null,null,0]
[null,null,null,null,null,null,{"$f":"INFO_CP","v":28034},{"$f":"INFO_CIUDAD","v":"Madrid"}]
[]
[]
[]
[null,null,"Bar Paco"]
[null,null,{"$f":"\"NIF: \"&IFERROR(VLOOKUP(C11,Clientes[],6,0),\"\")","v":"NIF: 823819283f"},null,null,null,"Num. Factura:",{"$f":"+COUNTA(TB_Facturas[[#All],[Factura]])+M6","v":13}]
[null,null,{"$f":"IFERROR(VLOOKUP(C11,Clientes[],2,0)&\" - \"&VLOOKUP(C11,Clientes[],5,0) & \" \"&VLOOKUP(C11,Clientes[],3,0),\"\")","v":"C/ Pez ,3 - 28034 Madrid"},null,null,null,"Fecha:",{"$f":"+TODAY()","v":"2015-11-18"}]
[]
[null,null,"Concepto"]
[]
[null,null,"sadfasdfasdfasdfasd asd fasd fasd fasdf asd fasdf asdf "]
[]
[]
[]
[]
[]
[]
[]
[]
[]
[]
[]
[]
[]
[]
[]
[]
[]
[null,null,null,null,null,null,"Importe sin IVA",2300]
[null,null,null,null,null,null,{"$f":"\"IVA (\"&INFO_IVA*100&\"%)\"","v":"IVA (18%)"},{"$f":"+INFO_IVA*H35","v":414}]
[null,null,null,null,null,null,{"$f":"\"Retención (\"&TIPO_IRPF*100&\"%)\"","v":"Retención (15%)"},{"$f":"+H35*TIPO_IRPF","v":345}]
[]
[null,null,null,null,null,null,"Importe a pagar:",{"$f":"+H35+H36-H37","v":2369}]
[]
[]
[null,null,"La presente factura debe ser pagada antes de 30 días después de su emision a la siguiente Cuenta Corriente: 8681012847103847.\nRogamos indique en el asunto de la transferencia el nombre de la empresa y el número de factura."]
[]
[]
[]
[]
[]
[]
[]
[]
[]
[]
[null,null,{"$f":"INFO_NOMBRE&\" - \"&INFO_DIREC&\" \"&INFO_CP& \" - \"&INFO_CIUDAD","v":"Pepito Pérez - C/ Costa Brava, 190 5ºb 28034 - Madrid"}]

{"sheet":"4. Control","index":4,"n_rows":36,"n_cols":8,"rows_kept":36,"cut":false,"hidden":false,"merged":[]}
[null,"Hoja de control",null,null,null,null,null,"www.excelyvba.com"]
[]
[]
[]
[]
[]
[]
[]
[]
[]
[null,"Estado general de cuenta",null,null,null,"Estado mensual de cuenta"]
[]
[null,"Estado","Total Importe Bruto",null,null,"Total Importe Bruto","Mes"]
[null,"Enviada",18934,null,null,"Año",2015,"Total Imp_bruto"]
[null,"Pagada",1180,null,null,9,1180,1180]
[null,"Pendiente",1180,null,null,10,1180,1180]
[null,"Total general",21294,null,null,11,18934,18934]
[null,null,null,null,null,"Total Imp_bruto",21294,21294]
[]
[]
[]
[]
[]
[]
[]
[]
[]
[null,"IVA"]
[]
[null,"IVA Pagado","No",null,null,"IVA Pagado","No"]
[]
[null,"Estado","IVA a deber",null,null,"IVA a deber","Año"]
[null,"Enviada",3024,null,null,"Mes",2015,"Total general"]
[null,"Pendiente",180,null,null,10,180,180]
[null,"Total general",3204,null,null,11,3024,3024]
[null,null,null,null,null,"Total general",3204,3204]